Workbook

Sheet MENU

Sheet BOLETOS
A1: Nº | B1: T/C | C1: F.P | D1: COD-CLTE | E1: NOMBRE CLIENTE | F1: FECHA DE EMISION | G1: L.A. | H1: COD | I1: BOLETO Nº | J1: RUTA1 | K1: RUTA2 | L1: RUTA3 | M1: RUTA4 | N1: RUTA5 | O1: NOMBRE DEL PASAJER@ | P1: BOLIVIANOS | Q1: DOLARES | R1: NETO BS | S1: NETO USD | T1: TAX BS | U1: TAX USD | V1: E.P. | W1: SOLICITADO POR | X1: OBSERVACIONES
A2: 1 | B2: 6 | C2: C | D2: A1 | E2: PEREZ JUAN | F2: 2014-01-05 | G2: TM | H2: 0 | I2: 2550 | J2: SRE | K2: LPB | L2: SRE | O2: MARTINEZ JESUS | P2: 1000 | Q2: 0
A3: 2 | B3: 6 | C3: P | D3: A2 | E3: CONTADO | F3: 2014-01-05 | G3: TM | H3: 0 | I3: 2551 | J3: VVI | K3: LPB | L3: SRE | M3: CBB | N3: SRE | O3: ZENTENO JACQUELINE | P3: 2500 | Q3: 0
A4: 3 | B4: 6 | C4: A | D4: B2 | E4: ANULADO | F4: 2014-01-05 | G4: OB | H4: 930 | I4: 2552 | O4: NOMBRE00001 | P4: 0 | Q4: 0
A5: 4 | B5: 6 | C5: TV | D5: C3 | E5: TARJETA DE CREDITO | F5: 2014-01-05 | G5: OB | H5: 930 | I5: 2553 | J5: VVI | K5: LPB | L5: SRE | M5: CBB | N5: SRE | O5: MARTINEZ SOFIA | Q5: 100
A6: 5 | B6: 6 | C6: C | D6: A1 | E6: PEREZ JUAN | F6: 2014-01-05 | G6: EJ | H6: 0 | I6: 2554 | J6: VVI | K6: LPB | L6: SRE | O6: NOMBRE00002 | Q6: 200
A7: 6 | B7: 6 | C7: A | D7: B2 | E7: ANULADO | F7: 2014-01-05 | G7: EJ | H7: 0 | I7: 2555 | O7: NOMBRE00003 | P7: 0 | Q7: 0
A8: 7 | B8: 6 | C8: P | D8: A2 | E8: CONTADO | F8: 2014-01-06 | G8: OB | H8: 930 | I8: 2556 | J8: SRE | K8: LPB | L8: SRE | O8: NOMBRE00004 | P8: 1000 | Q8: 0
A9: 8 | B9: 6 | C9: P | D9: A2 | E9: CONTADO | F9: 2014-01-06 | G9: OB | H9: 930 | I9: 2557 | J9: SRE | K9: LPB | L9: SRE | O9: NOMBRE00005 | P9: 1000 | Q9: 0
A10: 9 | B10: 6 | C10: P | D10: A2 | E10: CONTADO | F10: 2014-01-06 | G10: TM | H10: 0 | I10: 2558 | J10: SRE | K10: CBB | O10: NOMBRE00006 | P10: 0 | Q10: 50
A11: 10 | B11: 6 | C11: TV | D11: C3 | E11: TARJETA DE CREDITO | F11: 2014-01-06 | G11: TM | H11: 0 | I11: 2559 | J11: LPB | K11: SRE | O11: NOMBRE00007 | P11: 0 | Q11: 50
A12: 11 | B12: 6 | C12: A | D12: B2 | E12: ANULADO | F12: 2014-01-06 | G12: Z8 | H12: 464 | I12: 2560 | O12: NOMBRE00008 | P12: 0 | Q12: 0
A13: 12 | B13: 6 | C13: C | D13: A1 | E13: PEREZ JUAN | F13: 2014-01-06 | G13: Z8 | H13: 464 | I13: 2561 | J13: VVI | K13: LPB | L13: SRE | M13: CBB | N13: SRE | O13: NOMBRE00009 | P13: 2000
A14: 13 | B14: 6 | C14: P | D14: A2 | E14: CONTADO | F14: 2014-01-06 | G14: Z8 | H14: 464 | I14: 2562 | J14: LPB | K14: SRE | O14: NOMBRE00010 | Q14: 120
A15: 1 | B15: 6 | C15: C | D15: A1 | E15: PEREZ JUAN | F15: 2014-01-05 | G15: TM | H15: 0 | I15: 2550 | J15: SRE | K15: LPB | L15: SRE | O15: MARTINEZ JESUS | P15: 1000 | Q15: 0
A16: 2 | B16: 6 | C16: P | D16: A2 | E16: CONTADO | F16: 2014-01-05 | G16: TM | H16: 0 | I16: 2551 | J16: VVI | K16: LPB | L16: SRE | M16: CBB | N16: SRE | O16: ZENTENO JACQUELINE | P16: 2500 | Q16: 0
A17: 3 | B17: 6 | C17: A | D17: B2 | E17: ANULADO | F17: 2014-01-05 | G17: OB | H17: 930 | I17: 2552 | O17: NOMBRE00001 | P17: 0 | Q17: 0
A18: 4 | B18: 6 | C18: TV | D18: C3 | E18: TARJETA DE CREDITO | F18: 2014-01-05 | G18: OB | H18: 930 | I18: 2553 | J18: VVI | K18: LPB | L18: SRE | M18: CBB | N18: SRE | O18: MARTINEZ SOFIA | Q18: 100
A19: 5 | B19: 6 | C19: C | D19: A1 | E19: PEREZ JUAN | F19: 2014-01-05 | G19: EJ | H19: 0 | I19: 2554 | J19: VVI | K19: LPB | L19: SRE | O19: NOMBRE00002 | Q19: 200
A20: 6 | B20: 6 | C20: A | D20: B2 | E20: ANULADO | F20: 2014-01-05 | G20: EJ | H20: 0 | I20: 2555 | O20: NOMBRE00003 | P20: 0 | Q20: 0
A21: 7 | B21: 6 | C21: P | D21: A2 | E21: CONTADO | F21: 2014-01-06 | G21: OB | H21: 930 | I21: 2556 | J21: SRE | K21: LPB | L21: SRE | O21: NOMBRE00004 | P21: 1000 | Q21: 0
A22: 8 | B22: 6 | C22: P | D22: A2 | E22: CONTADO | F22: 2014-01-06 | G22: OB | H22: 930 | I22: 2557 | J22: SRE | K22: LPB | L22: SRE | O22: NOMBRE00005 | P22: 1000 | Q22: 0
A23: 9 | B23: 6 | C23: P | D23: A2 | E23: CONTADO | F23: 2014-01-06 | G23: TM | H23: 0 | I23: 2558 | J23: SRE | K23: CBB | O23: NOMBRE00006 | P23: 0 | Q23: 50
A24: 10 | B24: 6 | C24: TV | D24: C3 | E24: TARJETA DE CREDITO | F24: 2014-01-06 | G24: TM | H24: 0 | I24: 2559 | J24: LPB | K24: SRE | O24: NOMBRE00007 | P24: 0 | Q24: 50
A25: 11 | B25: 6 | C25: A | D25: B2 | E25: ANULADO | F25: 2014-01-06 | G25: Z8 | H25: 464 | I25: 2560 | O25: NOMBRE00008 | P25: 0 | Q25: 0
A26: 12 | B26: 6 | C26: C | D26: A1 | E26: PEREZ JUAN | F26: 2014-01-06 | G26: Z8 | H26: 464 | I26: 2561 | J26: VVI | K26: LPB | L26: SRE | M26: CBB | N26: SRE | O26: NOMBRE00009 | P26: 2000
A27: 13 | B27: 6 | C27: P | D27: A2 | E27: CONTADO | F27: 2014-01-06 | G27: Z8 | H27: 464 | I27: 2562 | J27: LPB | K27: SRE | O27: NOMBRE00010 | Q27: 120
A28: 1 | B28: 6 | C28: C | D28: A1 | E28: PEREZ JUAN | F28: 2014-01-05 | G28: TM | H28: 0 | I28: 2550 | J28: SRE | K28: LPB | L28: SRE | O28: MARTINEZ JESUS | P28: 1000 | Q28: 0
A29: 2 | B29: 6 | C29: P | D29: A2 | E29: CONTADO | F29: 2014-01-05 | G29: TM | H29: 0 | I29: 2551 | J29: VVI | K29: LPB | L29: SRE | M29: CBB | N29: SRE | O29: ZENTENO JACQUELINE | P29: 2500 | Q29: 0
A30: 3 | B30: 6 | C30: A | D30: B2 | E30: ANULADO | F30: 2014-01-05 | G30: OB | H30: 930 | I30: 2552 | O30: NOMBRE00001 | P30: 0 | Q30: 0
A31: 4 | B31: 6 | C31: TV | D31: C3 | E31: TARJETA DE CREDITO | F31: 2014-01-05 | G31: OB | H31: 930 | I31: 2553 | J31: VVI | K31: LPB | L31: SRE | M31: CBB | N31: SRE | O31: MARTINEZ SOFIA | Q31: 100
A32: 5 | B32: 6 | C32: C | D32: A1 | E32: PEREZ JUAN | F32: 2014-01-05 | G32: EJ | H32: 0 | I32: 2554 | J32: VVI | K32: LPB | L32: SRE | O32: NOMBRE00002 | Q32: 200
A33: 6 | B33: 6 | C33: A | D33: B2 | E33: ANULADO | F33: 2014-01-05 | G33: EJ | H33: 0 | I33: 2555 | O33: NOMBRE00003 | P33: 0 | Q33: 0
A34: 7 | B34: 6 | C34: P | D34: A2 | E34: CONTADO | F34: 2014-01-06 | G34: OB | H34: 930 | I34: 2556 | J34: SRE | K34: LPB | L34: SRE | O34: NOMBRE00004 | P34: 1000 | Q34: 0
A35: 8 | B35: 6 | C35: P | D35: A2 | E35: CONTADO | F35: 2014-01-06 | G35: OB | H35: 930 | I35: 2557 | J35: SRE | K35: LPB | L35: SRE | O35: NOMBRE00005 | P35: 1000 | Q35: 0
A36: 9 | B36: 6 | C36: P | D36: A2 | E36: CONTADO | F36: 2014-01-06 | G36: TM | H36: 0 | I36: 2558 | J36: SRE | K36: CBB | O36: NOMBRE00006 | P36: 0 | Q36: 50
A37: 10 | B37: 6 | C37: TV | D37: C3 | E37: TARJETA DE CREDITO | F37: 2014-01-06 | G37: TM | H37: 0 | I37: 2559 | J37: LPB | K37: SRE | O37: NOMBRE00007 | P37: 0 | Q37: 50
A38: 11 | B38: 6 | C38: A | D38: B2 | E38: ANULADO | F38: 2014-01-06 | G38: Z8 | H38: 464 | I38: 2560 | O38: NOMBRE00008 | P38: 0 | Q38: 0
A39: 12 | B39: 6 | C39: C | D39: A1 | E39: PEREZ JUAN | F39: 2014-01-06 | G39: Z8 | H39: 464 | I39: 2561 | J39: VVI | K39: LPB | L39: SRE | M39: CBB | N39: SRE | O39: NOMBRE00009 | P39: 2000
A40: 13 | B40: 6 | C40: P | D40: A2 | E40: CONTADO | F40: 2014-01-06 | G40: Z8 | H40: 464 | I40: 2562 | J40: LPB | K40: SRE | O40: NOMBRE00010 | Q40: 120

Sheet BOLEMI
A1: FECHA DE EMISION
A2: F.P | B2: COD-CLTE | C2: NOMBRE CLIENTE | D2: L.A. | E2: COD | F2: BOLETO Nº | G2: RUTA | L2: NOMBRE DEL PASAJER@ | M2: BOLIVIANOS | N2: DOLARES

Sheet EXTRAS
B1: FP | D1: EP | H1: LA | K1: RB | L1: EG
B2: A | C2: ANULADO | D2: RMO | E2: ROSANGELA MAIDANA OROSCO | G2: AMERICAN AIRLINES | H2: AA | I2: 001 | K2: 69500 | L2: 6200
B3: C | C3: CUENTA | D3: SCV | E3: SIRIAM CALVO VARGAS | G3: AEROLINEAS ARGENTINAS | H3: AR | I3: 044 | K3: =+K2+1 -> 69501 | L3: =+L2+1 -> 6201
B4: P | C4: CONTADO | D4: JMP | E4: JESUS MARTINEZ PLANTAROSA | G4: LATAM | H4: LA | I4: 045 | K4: =+K3+1 -> 69502 | L4: 6202
B5: TV | C5: TARJETA | D5: ASM | E5: ALINA SANCHEZ MARTINEZ | G5: ALITALIA | H5: AZ | I5: 055 | K5: 69503 | L5: 6203
D6: HVC | E6: HERNAN VIDAURRE CELIZ | G6: AIR FRANCE | H6: AF | I6: 057 | K6: 69504 | L6: 6204
D7: PBV | E7: PATRICIA BERRIOS VARGAS | G7: IBERIA | H7: IB | I7: 075 | K7: 69505 | L7: 6205
D8: OAS | E8: OASIS TOURS | G8: VRG LINHAS AEREAS | H8: G3 | I8: 127 | K8: 69506 | L8: 6206
D9: NFC | E9: NIEVES FLORES CALDERON | G9: AVIANCA | H9: AV | I9: 134 | K9: 69507 | L9: 6207
G10: AEROMEXICO | H10: AM | I10: 139 | K10: 69508 | L10: 6208
B11: TG | G11: HAHN AIRLINES GMBH | H11: HR | I11: 169 | K11: 69509 | L11: 6209
B12: C | C12: COMISIONES | G12: KOREAN AIR | H12: KE | I12: 180 | K12: 69510 | L12: 6210
B13: E | C13: EGRESO | G13: TACA | H13: TA | I13: 202 | K13: 69511 | L13: 6211
B14: F | C14: FEES | G14: LUFTHANSA | H14: LH | I14: 220 | K14: 69512 | L14: 6212
B15: D | C15: DEBITO | G15: COPA AIRLINES | H15: CM | I15: 230 | K15: 69513 | L15: 6213
G16: AMASZONAS | H16: Z8 | I16: 464 | K16: 69514 | L16: 6214
G17: TACA PERU | H17: T0 | I17: 530 | K17: 69515 | L17: 6215
G18: SKY AIRLINE | H18: H2 | I18: 605 | K18: 69516 | L18: 6216
G19: TAM MERCOSUR | H19: PZ | I19: 692 | K19: 69517 | L19: 6217
G20: AEROCON | H20: A4 | I20: 702 | K20: =+K19+1 -> 69518 | L20: 6218
G21: HELI AIR MONACO | H21: YO | I21: 747 | K21: 69519 | L21: 6219
G22: BOLIVIANA DE AVIACION | H22: OB | I22: 930 | K22: 69520 | L22: 6220
G23: AIR EUROPA | H23: UX | I23: 996 | K23: 69521 | L23: 6221
G24: TRANSOFT LTDA | H24: TF | I24: 000 | K24: 69522 | L24: 6222
G25: TRANSPORTES AEREOS MILITARES | H25: TM | I25: 000 | K25: 69523 | L25: 6223 | O25: 1
G26: ECO JET | H26: EJ | I26: 000 | K26: 69524 | L26: 6224
K27: 69525 | L27: 6225
K28: 69526 | L28: 6226
K29: 69527 | L29: 6227
K30: 69528 | L30: 6228
K31: 69529 | L31: 6229
K32: 69530 | L32: 6230
K33: 69531 | L33: 6231
K34: 69532 | L34: 6232
K35: 69533 | L35: 6233
K36: =+K35+1 -> 69534 | L36: 6234
K37: 69535 | L37: 6235
K38: 69536 | L38: 6236
K39: 69537 | L39: 6237
K40: 69538 | L40: 6238
K41: 69539 | L41: 6239
K42: 69540 | L42: 6240
K43: 69541 | L43: 6241
K44: 69542 | L44: 6242
K45: 69543 | L45: 6243
K46: 69544 | L46: 6244
K47: 69545 | L47: 6245
K48: 69546 | L48: 6246
K49: 69547 | L49: 6247
K50: 69548 | L50: 6248
K51: 69549 | L51: 6249
K52: =+K51+1 -> 69550 | L52: 6250
K53: 69551 | L53: 6251
K54: 69552 | L54: 6252
K55: 69553 | L55: 6253
K56: 69554 | L56: 6254
K57: 69555 | L57: 6255
K58: 69556 | L58: 6256
K59: 69557 | L59: 6257
K60: 69558 | L60: 6258
K61: 69559 | L61: 6259
K62: 69560 | L62: 6260
K63: 69561 | L63: 6261
K64: 69562 | L64: 6262
K65: 69563 | L65: 6263
K66: 69564 | L66: 6264
K67: 69565 | L67: 6265
K68: =+K67+1 -> 69566 | L68: 6266
K69: 69567 | L69: 6267
K70: 69568 | L70: 6268
K71: 69569 | L71: 6269
K72: 69570 | L72: 6270
K73: 69571 | L73: 6271
K74: 69572 | L74: 6272
K75: 69573 | L75: 6273
K76: 69574 | L76: 6274
K77: 69575 | L77: 6275
K78: 69576 | L78: 6276
K79: 69577 | L79: 6277
K80: 69578 | L80: 6278
K81: 69579 | L81: 6279
K82: 69580 | L82: 6280
K83: 69581 | L83: 6281
K84: =+K83+1 -> 69582 | L84: 6282
K85: 69583 | L85: 6283
K86: 69584 | L86: 6284
K87: 69585 | L87: 6285
K88: 69586 | L88: 6286
K89: 69587 | L89: 6287
K90: 69588 | L90: 6288
K91: 69589 | L91: 6289
K92: 69590 | L92: 6290
K93: 69591 | L93: 6291
K94: 69592 | L94: 6292
K95: 69593 | L95: 6293
K96: 69594 | L96: 6294
K97: 69595 | L97: 6295
K98: 69596 | L98: 6296
K99: 69597 | L99: 6297
K100: =+K99+1 -> 69598 | L100: 6298
K101: 69599 | L101: 6299
K102: 69600 | L102: 6300
K103: 69601 | L103: 6301
K104: 69602 | L104: 6302
K105: 69603 | L105: 6303
K106: 69604 | L106: 6304
K107: 69605 | L107: 6305
K108: 69606 | L108: 6306
K109: 69607 | L109: 6307
K110: 69608 | L110: 6308
K111: 69609 | L111: 6309
K112: 69610 | L112: 6310
K113: 69611 | L113: 6311
K114: 69612 | L114: 6312
K115: 69613 | L115: 6313
K116: =+K115+1 -> 69614 | L116: 6314
K117: 69615 | L117: 6315
K118: 69616 | L118: 6316
K119: 69617 | L119: 6317
K120: 69618 | L120: 6318
K121: 69619 | L121: 6319
K122: 69620 | L122: 6320
K123: 69621 | L123: 6321
K124: 69622 | L124: 6322
K125: 69623 | L125: 6323
K126: 69624 | L126: 6324
K127: 69625 | L127: 6325
K128: 69626 | L128: 6326
K129: 69627 | L129: 6327
K130: 69628 | L130: 6328
K131: 69629 | L131: 6329
K132: =+K131+1 -> 69630 | L132: 6330
K133: 69631 | L133: 6331
K134: 69632 | L134: 6332
K135: 69633 | L135: 6333
K136: 69634 | L136: 6334
K137: 69635 | L137: 6335
K138: 69636 | L138: 6336
K139: 69637 | L139: 6337
K140: 69638 | L140: 6338
K141: 69639 | L141: 6339
K142: 69640 | L142: 6340
K143: 69641 | L143: 6341
K144: 69642 | L144: 6342
K145: 69643 | L145: 6343
K146: 69644 | L146: 6344
K147: 69645 | L147: 6345
K148: =+K147+1 -> 69646 | L148: 6346
K149: 69647 | L149: 6347
K150: 69648 | L150: 6348
K151: 69649 | L151: 6349
K152: 69650 | L152: 6350
K153: 69651 | L153: 6351
K154: 69652 | L154: 6352
K155: 69653 | L155: 6353
K156: 69654 | L156: 6354
K157: 69655 | L157: 6355
K158: 69656 | L158: 6356
K159: 69657 | L159: 6357
K160: 69658 | L160: 6358
K161: 69659 | L161: 6359
K162: 69660 | L162: 6360
K163: 69661 | L163: 6361
K164: =+K163+1 -> 69662 | L164: 6362
K165: 69663 | L165: 6363
K166: 69664 | L166: 6364
K167: 69665 | L167: 6365
K168: 69666 | L168: 6366
K169: 69667 | L169: 6367
K170: 69668 | L170: 6368
K171: 69669 | L171: 6369
K172: 69670 | L172: 6370
K173: 69671 | L173: 6371
K174: 69672 | L174: 6372
K175: 69673 | L175: 6373
K176: 69674 | L176: 6374
K177: 69675 | L177: 6375
K178: 69676 | L178: 6376
K179: 69677 | L179: 6377
K180: =+K179+1 -> 69678 | L180: 6378
K181: 69679 | L181: 6379
K182: 69680 | L182: 6380
K183: 69681 | L183: 6381
K184: 69682 | L184: 6382
K185: 69683 | L185: 6383
K186: 69684 | L186: 6384
K187: 69685 | L187: 6385
K188: 69686 | L188: 6386
K189: 69687 | L189: 6387
K190: 69688 | L190: 6388
K191: 69689 | L191: 6389
K192: 69690 | L192: 6390
K193: 69691 | L193: 6391
K194: 69692 | L194: 6392
K195: 69693 | L195: 6393
K196: =+K195+1 -> 69694 | L196: 6394
K197: 69695 | L197: 6395
K198: 69696 | L198: 6396
K199: 69697 | L199: 6397
K200: 69698 | L200: 6398
... 302 more rows
